bitfinex/quotes_BTCUSD_20241130
["timestamp","ask_amount","ask_price","bid_price","bid_amount"]
[1733004778491,0.37408921,96881.0,96879.0,0.0017292]
[1733004780069,0.38408921,96881.0,96879.0,0.0017292]
[1733004780260,0.44634794,96881.0,96879.0,0.0017292]
[1733004780460,0.38408921,96881.0,96879.0,0.0017292]
[1733004780668,0.38408842,96881.0,96879.0,0.0017292]
[1733004783675,0.37408842,96881.0,96879.0,0.0017292]
[1733004784052,0.36442851,96881.0,96879.0,0.0017292]
[1733004788598,0.23992851,96881.0,96879.0,0.0017292]
[1733004790505,0.21692851,96881.0,96879.0,0.0017292]
[1733004793986,0.36812851,96881.0,96879.0,0.0017292]
[1733004795359,0.37779433,96881.0,96879.0,0.0017292]
[1733004797948,0.37779544,96881.0,96879.0,0.0017292]
[1733004800267,0.22659544,96881.0,96879.0,0.0017292]
[1733004800482,0.21692851,96881.0,96879.0,0.0017292]
[1733004801385,0.21692851,96881.0,96880.0,0.0513286]
[1733004801595,0.21692851,96881.0,96880.0,0.05389902]
[1733004805941,0.11370951,96881.0,96880.0,0.05389902]
[1733004806632,0.11370951,96881.0,96880.0,0.23958669]
[1733004806850,0.21692851,96881.0,96880.0,0.23958669]
[1733004807059,0.21692851,96881.0,96880.0,0.05389902]
[1733004807277,0.21692851,96881.0,96880.0,0.23958669]
[1733004808485,0.21692851,96881.0,96880.0,0.05389902]
[1733004809599,0.21692851,96881.0,96880.0,0.23958669]
[1733004810086,0.21692851,96881.0,96880.0,0.05389902]
[1733004810306,0.21692851,96881.0,96880.0,0.19311443]
[1733004810772,0.21692851,96881.0,96880.0,0.05389902]
[1733004811070,0.21692851,96881.0,96880.0,0.19311443]
[1733004811226,0.21692851,96881.0,96880.0,0.05389902]
[1733004811818,0.21692851,96881.0,96880.0,0.19309453]
[1733004812109,0.21692851,96881.0,96880.0,0.05389902]
[1733004812527,0.21692851,96881.0,96880.0,0.19308798]
[1733004813091,0.21692851,96881.0,96880.0,0.05389902]
[1733004813238,0.21692851,96881.0,96880.0,0.19308458]
[1733004813911,0.11370951,96881.0,96880.0,0.19307559]
[1733004814148,0.21692851,96881.0,96880.0,0.19307559]
[1733004814648,0.11370951,96881.0,96880.0,0.19307559]
[1733004815259,0.0108643,96881.0,96880.0,0.23281902]
[1733004816973,0.0008643,96881.0,96880.0,0.23281902]
[1733004817178,0.0008643,96881.0,96880.0,0.23481902]
[1733004817453,0.0008643,96881.0,96880.0,0.51387829]
[1733004818482,0.0008643,96881.0,96880.0,0.23581902]
[1733004825504,0.0008643,96881.0,96880.0,0.23874223]
[1733004825505,0.10370951,96881.0,96880.0,0.23874223]
[1733004825751,0.10370951,96881.0,96880.0,0.24938714]
[1733004825944,0.10370951,96881.0,96880.0,0.24939457]
[1733004826168,0.10370951,96881.0,96880.0,0.11051902]
[1733004826394,0.10370951,96881.0,96880.0,0.00729902]
[1733004826592,0.10370951,96881.0,96880.0,0.11051902]
[1733004827075,0.10370951,96881.0,96880.0,0.14617439]
[1733004827294,0.10370951,96881.0,96880.0,0.00429902]
[1733004827525,0.10370951,96881.0,96880.0,0.14317439]
[1733004827748,0.10370951,96881.0,96880.0,0.00429902]
[1733004828258,0.10470951,96881.0,96880.0,0.14317439]
[1733004828511,0.10470951,96881.0,96880.0,0.00429902]
[1733004828755,0.10470951,96881.0,96880.0,0.14318785]
[1733004828947,0.10470951,96881.0,96880.0,0.14318789]
[1733004829189,0.10470951,96881.0,96880.0,0.00429902]
[1733004829428,0.10470951,96881.0,96880.0,0.10751902]
[1733004830106,0.10470951,96881.0,96880.0,0.24641763]
[1733004830346,0.10470951,96881.0,96880.0,0.10751902]
[1733004831719,0.10470951,96881.0,96880.0,0.00429902]
[1733004835631,0.10470951,96881.0,96880.0,0.18948419]
[1733004836246,0.10470951,96881.0,96880.0,0.00429902]
[1733004836478,0.10470951,96881.0,96880.0,0.18948419]
[1733004836669,0.10470951,96881.0,96880.0,0.00429902]
[1733004837401,0.10470951,96881.0,96880.0,0.18958008]
[1733004837627,0.10470951,96881.0,96880.0,0.00429902]
[1733004838304,0.10470951,96881.0,96880.0,0.18959205]
[1733004840106,0.10470951,96881.0,96880.0,0.18962353]
[1733004840344,0.10470951,96881.0,96880.0,0.00429902]
[1733004840571,0.10470951,96881.0,96880.0,0.18964271]
[1733004840794,0.10470951,96881.0,96880.0,0.00429902]
[1733004841013,0.10470951,96881.0,96880.0,0.18964271]
[1733004841467,0.10343529,96881.0,96880.0,0.00429902]
[1733004843078,0.10343529,96881.0,96880.0,0.23604791]
[1733004843288,0.10343529,96881.0,96880.0,0.00429902]
[1733004843471,0.10343529,96881.0,96880.0,0.10751902]
[1733004843678,0.10343529,96881.0,96880.0,0.00429902]
[1733004843909,0.10343529,96881.0,96880.0,0.10751902]
[1733004844114,0.10343529,96881.0,96880.0,0.00429902]
[1733004847047,0.10329959,96881.0,96880.0,0.00429902]
[1733004847259,0.10429959,96881.0,96880.0,0.00429902]
[1733004847480,0.10429959,96881.0,96880.0,0.10751902]
[1733004847953,0.10529959,96881.0,96880.0,0.00429902]
[1733004850118,0.10529959,96881.0,96880.0,0.10751902]
[1733004851668,0.10529959,96881.0,96880.0,0.00429902]
[1733004853124,0.10529959,96881.0,96880.0,0.10751902]
[1733004853336,0.10529959,96881.0,96880.0,0.00429902]
[1733004854608,0.10529959,96881.0,96880.0,0.10751902]
[1733004855034,0.10429959,96881.0,96880.0,0.10751902]
[1733004855335,0.10329959,96881.0,96880.0,0.10751902]
[1733004855557,0.10429959,96881.0,96880.0,0.10751902]
[1733004857537,0.10529959,96881.0,96880.0,0.10751902]
[1733004857977,0.10429959,96881.0,96880.0,0.10751902]
[1733004858876,0.10429959,96881.0,96880.0,0.3859125]
[1733004859746,0.10429959,96881.0,96880.0,0.10751902]
[1733004861841,0.10329959,96881.0,96880.0,0.10751902]
[1733004863789,0.0018643,96881.0,96880.0,0.15511902]
[1733004864975,0.0008643,96881.0,96880.0,0.15511902]
[1733004865212,0.0008643,96881.0,96880.0,0.15711902]
[1733004866822,0.0008643,96881.0,96880.0,0.15811902]
[1733004878537,0.0008643,96881.0,96880.0,0.11051902]
[1733004884393,0.0008643,96881.0,96880.0,0.13159955]
[1733004885756,0.0008643,96881.0,96880.0,0.11051902]
[1733004894553,0.0008643,96881.0,96880.0,0.12129715]
[1733004900304,0.0008643,96881.0,96880.0,0.11051902]
[1733004900751,0.0008643,96881.0,96880.0,0.00729902]
[1733004900888,0.25302851,96881.0,96880.0,0.00729902]
[1733004901103,0.22520951,96881.0,96880.0,0.00729902]
[1733004902023,0.22520951,96881.0,96880.0,0.00629902]
[1733004902449,0.22520951,96881.0,96880.0,0.00429902]
[1733004902919,0.22620951,96881.0,96880.0,0.00429902]
[1733004903567,0.22620951,96881.0,96880.0,0.28045127]
[1733004903978,0.22620951,96881.0,96880.0,0.00437588]
[1733004904425,0.22620951,96881.0,96880.0,0.0017286]
[1733004904668,0.22620951,96881.0,96880.0,0.00437588]
[1733004904907,0.22620951,96881.0,96880.0,0.28309197]
[1733004905378,0.22620951,96881.0,96880.0,0.28308185]
[1733004905803,0.22620951,96881.0,96880.0,0.00437588]
[1733004906722,0.22620951,96881.0,96880.0,0.28307317]
[1733004906963,0.32942851,96881.0,96880.0,0.28307317]
[1733004908076,0.32942851,96881.0,96880.0,0.28306553]
[1733004908295,0.32942851,96881.0,96880.0,0.00437588]
[1733004909150,0.33909081,96881.0,96880.0,0.00437588]
[1733004909590,0.36209081,96881.0,96880.0,0.00437588]
[1733004910422,0.36209081,96881.0,96880.0,0.0017286]
[1733004910662,0.36209081,96881.0,96880.0,0.00417224]
[1733004911344,0.36209081,96881.0,96880.0,0.18988995]
[1733004911537,0.36309081,96881.0,96880.0,0.18988995]
[1733004912001,0.36509081,96881.0,96880.0,0.18988995]
[1733004912199,0.36909081,96881.0,96880.0,0.18988995]
[1733004912420,0.36909081,96881.0,96880.0,0.23635]
[1733004912855,0.35942851,96881.0,96880.0,0.23635]
[1733004913104,0.36907723,96881.0,96880.0,0.23627633]
[1733004913330,0.36507723,96881.0,96880.0,0.23627633]
[1733004913541,0.36507723,96881.0,96880.0,0.00417224]
[1733004913736,0.36507723,96881.0,96880.0,0.18986112]
[1733004913970,0.37207723,96881.0,96880.0,0.00417224]
[1733004914169,0.37207723,96881.0,96880.0,0.18986112]
[1733004914306,0.37207723,96881.0,96880.0,0.00417224]
[1733004916680,0.37183174,96881.0,96880.0,0.00417224]
[1733004916926,0.37183174,96881.0,96880.0,0.14337949]
[1733004917329,0.37183174,96881.0,96880.0,0.00417224]
[1733004918333,0.37183174,96881.0,96880.0,0.0017286]
[1733004918839,0.37183174,96881.0,96880.0,0.00417832]
[1733004919544,0.36218302,96881.0,96880.0,0.00417832]
[1733004920047,0.36218302,96881.0,96880.0,0.0017286]
[1733004920537,0.36218302,96881.0,96880.0,0.00417832]
[1733004920985,0.36218302,96881.0,96880.0,0.0017286]
[1733004922102,0.36118302,96881.0,96880.0,0.0017286]
[1733004922517,0.36118302,96881.0,96880.0,0.00417832]
[1733004922723,0.36118302,96881.0,96880.0,0.0017286]
[1733004923826,0.37082116,96881.0,96880.0,0.0017286]
[1733004925182,0.37082134,96881.0,96880.0,0.0017286]
[1733004929024,0.37168564,96881.0,96880.0,0.0017286]
[1733004930192,0.34868564,96881.0,96880.0,0.0017286]
[1733004930420,1.04868564,96881.0,96880.0,0.0017286]
[1733004931669,0.103221,96879.0,96878.0,1e-08]
[1733004931923,0.22906621,96879.0,96878.0,1e-08]
[1733004932162,0.35536621,96879.0,96878.0,1e-08]
[1733004932393,0.36500453,96879.0,96878.0,1e-08]
[1733004932874,0.37100453,96879.0,96878.0,1e-08]
[1733004933104,0.38100453,96879.0,96878.0,1e-08]
[1733004933327,0.38100453,96879.0,96878.0,0.00245534]
[1733004933328,1.08100453,96879.0,96878.0,0.00245534]
[1733004933550,1.07436621,96879.0,96878.0,1e-08]
[1733004933753,1.08401325,96879.0,96878.0,1e-08]
[1733004934390,1.08101325,96879.0,96878.0,1e-08]
[1733004934851,1.09001325,96879.0,96878.0,1e-08]
[1733004935085,1.24001325,96879.0,96878.0,1e-08]
[1733004935300,1.23401325,96879.0,96878.0,1e-08]
[1733004935512,1.24301325,96879.0,96878.0,1e-08]
[1733004935728,1.23401325,96879.0,96878.0,1e-08]
[1733004936659,1.24301325,96879.0,96878.0,1e-08]
[1733004937396,1.23401325,96879.0,96878.0,1e-08]
[1733004937613,1.24301325,96879.0,96878.0,1e-08]
[1733004938248,1.23401325,96879.0,96878.0,1e-08]
[1733004938719,1.24301325,96879.0,96878.0,1e-08]
[1733004938952,1.28831318,96879.0,96878.0,1e-08]
[1733004940677,1.24301325,96879.0,96878.0,1e-08]
[1733004940883,1.24387755,96879.0,96878.0,1e-08]
[1733004947305,0.103227,96873.0,96872.0,0.13908542]
[1733004947578,0.23871925,96873.0,96872.0,0.13908542]
[1733004947791,0.22907221,96873.0,96872.0,0.14154825]
[1733004948004,0.103234,96867.0,96866.0,0.18550055]
[1733004948220,0.20607921,96867.0,96866.0,0.18550055]
[1733004948437,0.20607921,96867.0,96866.0,0.1879637]
[1733004948655,0.90607921,96867.0,96866.0,0.00246315]
[1733004948896,0.21573671,96867.0,96866.0,0.00246315]
[1733004949152,0.41254821,96867.0,96866.0,0.18558214]
[1733004949373,0.22479628,96867.0,96866.0,0.00246572]
[1733004949625,0.21513878,96867.0,96866.0,0.00246572]
[1733004949857,0.21513878,96867.0,96866.0,0.18559744]
[1733004950082,0.21513878,96867.0,96866.0,0.00246315]
[1733004950539,0.103243,96858.0,96856.0,0.27838914]
[1733004950761,0.20608821,96858.0,96856.0,0.27838914]
[1733004951453,0.20608821,96858.0,96852.0,0.41105897]
[1733004951681,0.20608821,96858.0,96856.0,0.27845236]
[1733004951906,0.21308821,96858.0,96856.0,0.27845236]
[1733004952134,0.21308821,96858.0,96852.0,0.41105897]
[1733004952369,0.21308821,96858.0,96847.0,0.0009889]
[1733004952370,0.21308821,96858.0,96856.0,0.27846826]
[1733004952595,0.21708821,96858.0,96857.0,0.28019686]
[1733004953446,0.91708821,96858.0,96857.0,0.0017286]
[1733004953661,0.91708821,96858.0,96857.0,0.28025434]
[1733004954090,0.91708821,96858.0,96857.0,0.28023843]
[1733004954330,0.91708821,96858.0,96857.0,0.28025434]
[1733004954542,0.92675056,96858.0,96857.0,0.28028326]
[1733004954751,0.92675056,96858.0,96857.0,0.0017286]
[1733004955226,0.22675056,96858.0,96857.0,0.0017286]
[1733004955436,0.21308821,96858.0,96857.0,0.0017286]
[1733004955863,0.21708821,96858.0,96857.0,0.0017286]
[1733004956048,0.21708821,96858.0,96857.0,0.00419254]
[1733004956294,0.21308821,96858.0,96857.0,0.0017286]
[1733004956504,0.21308821,96858.0,96857.0,0.00419254]
[1733004956714,0.21008821,96858.0,96857.0,0.0017286]
[1733004956925,0.21008821,96858.0,96857.0,0.00419945]
[1733004957136,0.21808821,96858.0,96857.0,0.0017286]
[1733004957573,0.21808821,96858.0,96857.0,0.00419945]
[1733004957811,0.21808821,96858.0,96857.0,0.0017286]
[1733004958003,0.21808821,96858.0,96857.0,0.00419945]
[1733004958249,0.91808821,96858.0,96857.0,0.0017286]
[1733004958467,0.91808821,96858.0,96857.0,0.00419945]
[1733004958703,0.92775011,96858.0,96857.0,0.0017286]
[1733004958911,0.92775011,96858.0,96857.0,0.00419945]
[1733004959150,0.92775011,96858.0,96857.0,0.0017286]
[1733004959362,0.92775011,96858.0,96857.0,0.00419945]
[1733004963158,0.92775155,96858.0,96857.0,0.00419945]
[1733004964119,0.92775155,96858.0,96857.0,0.00990515]
[1733004966530,1.55680967,96858.0,96857.0,0.00990515]
[1733004966826,1.55680967,96858.0,96857.0,0.0074343]
[1733004967247,0.85680967,96858.0,96857.0,0.0074343]
[1733004968380,0.85680967,96858.0,96857.0,0.0102452]
[1733004969104,0.85680967,96858.0,96857.0,0.0074343]
[1733004969580,0.83168821,96858.0,96857.0,0.01024103]
[1733004970217,0.85679702,96858.0,96857.0,0.01024103]
[1733004972231,0.85679702,96858.0,96857.0,0.0074343]
[1733004972439,0.85679702,96858.0,96857.0,0.23957106]
[1733004972618,0.85679702,96858.0,96857.0,0.01024103]
[1733004972831,0.85679702,96858.0,96857.0,0.0074343]
[1733004973253,0.85679702,96858.0,96857.0,0.0102452]
[1733004973478,0.85679702,96858.0,96857.0,0.23953475]
[1733004973933,0.85678445,96858.0,96857.0,0.23953475]
[1733004974163,0.85678445,96858.0,96857.0,0.0074343]
[1733004974429,0.8567844,96858.0,96857.0,0.24235587]
[1733004974671,0.83168821,96858.0,96857.0,0.24235587]
[1733004974899,0.85678326,96858.0,96857.0,0.0074343]
[1733004975125,0.85678326,96858.0,96857.0,0.23955353]
[1733004975372,0.85678326,96858.0,96857.0,0.0074343]
[1733004975597,0.85678326,96858.0,96857.0,0.01024576]
[1733004975824,0.85678326,96858.0,96857.0,0.24235475]
[1733004976304,0.85678326,96858.0,96857.0,0.23954329]
[1733004976782,0.85678326,96858.0,96857.0,0.0074343]
[1733004977003,0.85678326,96858.0,96857.0,0.24235438]
[1733004977504,0.85678326,96858.0,96857.0,0.23954292]
[1733004977940,0.85678326,96858.0,96857.0,0.0074343]
[1733004978417,0.83378326,96858.0,96857.0,0.0074343]
[1733004978640,0.83350967,96858.0,96857.0,0.0074343]
[1733004979375,0.83350967,96858.0,96857.0,0.19310859]
[1733004979613,0.83350967,96858.0,96857.0,0.19592422]
[1733004980306,0.81806656,96858.0,96857.0,0.01024993]
[1733004980537,0.81806656,96858.0,96857.0,0.19592817]
[1733004981032,0.81806585,96858.0,96857.0,0.19592817]
[1733004981308,0.81806585,96858.0,96857.0,0.01024993]
[1733004987179,0.81806585,96858.0,96857.0,0.0074343]
[1733004991695,0.80841462,96858.0,96857.0,0.0074343]
[1733004991873,0.81807235,96858.0,96857.0,0.0074343]
[1733004992267,1.51807235,96858.0,96857.0,0.0074343]
[1733004992502,0.81807235,96858.0,96857.0,0.0074343]
[1733004998173,0.80841462,96858.0,96857.0,0.0074343]
[1733004998395,0.81808197,96858.0,96857.0,0.0074343]
[1733004999042,0.68748197,96858.0,96857.0,0.0074343]
[1733005000427,0.70381438,96858.0,96857.0,0.0074343]
[1733005004100,0.69381438,96858.0,96857.0,0.0074343]
[1733005004317,0.39381438,96858.0,96857.0,0.0529343]
[1733005005212,0.39381602,96858.0,96857.0,0.0529343]
[1733005005438,0.39381602,96858.0,96857.0,0.0074343]
[1733005006141,0.37834716,96858.0,96857.0,0.0074343]
[1733005007222,0.37834716,96858.0,96857.0,0.1322343]
[1733005007442,0.37807357,96858.0,96857.0,0.1322343]
[1733005011440,0.37806358,96858.0,96857.0,0.1322343]
[1733005013579,0.37806358,96858.0,96857.0,0.0529343]
[1733005013976,0.37806358,96858.0,96857.0,0.0074343]
[1733005038535,0.36840553,96858.0,96857.0,0.0074343]
[1733005038750,0.37779117,96858.0,96857.0,0.0074343]
[1733005041886,0.37779424,96858.0,96857.0,0.0074343]
[1733005046969,0.42359424,96858.0,96857.0,0.0074343]
[1733005047592,0.51535392,96858.0,96857.0,0.0074343]
[1733005048795,0.51536183,96858.0,96857.0,0.0074343]
[1733005050450,0.51536183,96858.0,96847.0,0.0009889]
[1733005050451,0.103254,96848.0,96847.0,0.0009889]
[1733005050662,0.36576455,96848.0,96847.0,0.0009889]
[1733005050866,0.36576455,96848.0,96847.0,0.00300749]
[1733005051074,0.253259,96843.0,96842.0,0.0017286]
[1733005051297,0.36576955,96843.0,96842.0,0.0017286]
[1733005051500,0.36576955,96843.0,96842.0,0.00473922]
[1733005052148,0.35610421,96843.0,96842.0,0.00473922]
[1733005052377,0.36576772,96843.0,96842.0,0.00473922]
[1733005053436,0.36676772,96843.0,96842.0,0.00473922]
[1733005057625,0.36676772,96843.0,96842.0,0.0017286]
[1733005058556,0.36676772,96843.0,96842.0,0.00474278]
[1733005058768,0.36676772,96843.0,96842.0,0.0017286]
[1733005059212,0.35710421,96843.0,96842.0,0.0017286]
[1733005059441,0.36676314,96843.0,96842.0,0.0017286]
[1733005066342,0.35710421,96843.0,96842.0,0.0017286]
[1733005066543,0.36676109,96843.0,96842.0,0.0017286]
[1733005069193,0.41416109,96843.0,96842.0,0.0017286]
[1733005070590,0.36676109,96843.0,96842.0,0.0017286]
[1733005073095,0.36676228,96843.0,96842.0,0.0017286]
[1733005074865,0.44536228,96843.0,96842.0,0.0017286]
[1733005075070,0.49276228,96843.0,96842.0,0.0017286]
[1733005080293,0.48310421,96843.0,96842.0,0.0017286]
[1733005080506,0.49276646,96843.0,96842.0,0.0017286]
[1733005082339,0.49276615,96843.0,96842.0,0.0017286]
[1733005083714,0.49176615,96843.0,96842.0,0.0017286]
[1733005084195,0.50776615,96843.0,96842.0,0.0017286]
[1733005085657,0.38176615,96843.0,96842.0,0.0017286]
[1733005090357,0.38176532,96843.0,96842.0,0.0017286]
[1733005092469,0.37210421,96843.0,96842.0,0.0017286]
[1733005092694,0.38176583,96843.0,96842.0,0.0017286]
[1733005096016,0.38176708,96843.0,96842.0,0.0017286]
[1733005102740,0.38177141,96843.0,96842.0,0.0017286]
[1733005109477,0.38177578,96843.0,96842.0,0.0017286]
[1733005111272,0.37277578,96843.0,96842.0,0.0017286]
[1733005111499,0.38177578,96843.0,96842.0,0.0017286]
[1733005112208,0.37477578,96843.0,96842.0,0.0017286]
[1733005112923,0.38277598,96843.0,96842.0,0.0017286]
[1733005113392,0.37477598,96843.0,96842.0,0.0017286]
[1733005113608,0.37377598,96843.0,96842.0,0.0017286]
[1733005113842,0.38277598,96843.0,96842.0,0.0017286]
[1733005114070,0.37477598,96843.0,96842.0,0.0017286]
[1733005114308,0.36577598,96843.0,96842.0,0.0017286]
[1733005114542,0.37477598,96843.0,96842.0,0.0017286]
[1733005114750,0.36577598,96843.0,96842.0,0.0017286]
[1733005115211,0.37477598,96843.0,96842.0,0.0017286]
[1733005115657,0.38277598,96843.0,96842.0,0.0017286]
[1733005116079,0.37477598,96843.0,96842.0,0.0017286]
[1733005116561,0.38277604,96843.0,96842.0,0.0017286]
[1733005123460,0.38277734,96843.0,96842.0,0.0017286]
[1733005123878,0.38277733,96843.0,96842.0,0.0017286]
[1733005130670,0.38277812,96843.0,96842.0,0.0017286]
[1733005133734,0.37310421,96843.0,96842.0,0.0017286]
[1733005133954,0.3827791,96843.0,96842.0,0.0017286]
[1733005137193,0.37310421,96843.0,96842.0,0.0017286]
[1733005137446,0.38277939,96843.0,96842.0,0.0017286]
[1733005138562,0.41497805,96843.0,96842.0,0.0017286]
[1733005138990,0.38277939,96843.0,96842.0,0.0017286]
[1733005139180,0.41497835,96843.0,96842.0,0.0017286]
[1733005139443,0.38277939,96843.0,96842.0,0.0017286]
[1733005139692,0.42837939,96843.0,96842.0,0.0017286]
[1733005139925,0.46057795,96843.0,96842.0,0.0017286]
[1733005142969,0.45090277,96843.0,96842.0,0.0017286]
[1733005143215,0.46057663,96843.0,96842.0,0.0017286]
[1733005143564,0.4605767,96843.0,96842.0,0.0017286]
[1733005145904,0.4605767,96843.0,96842.0,6e-07]
[1733005148718,0.253265,96838.0,96837.0,0.00021]
[1733005148964,0.36578414,96838.0,96837.0,0.00021]
[1733005149895,0.36578104,96838.0,96837.0,0.00021]
[1733005150153,0.37178104,96838.0,96837.0,0.00021]
[1733005150628,0.38078104,96838.0,96837.0,0.00021]
[1733005151135,0.37111021,96838.0,96837.0,0.00021]
[1733005151588,0.38078078,96838.0,96837.0,0.00021]
[1733005152495,0.37111021,96838.0,96837.0,0.00021]
[1733005158770,0.3807813,96838.0,96837.0,0.00021]
[1733005161215,0.3807813,96838.0,96837.0,0.0010742]
[1733005161437,0.37111021,96838.0,96837.0,0.0010742]
[1733005161655,0.38078207,96838.0,96837.0,0.0010742]
[1733005161877,0.38078195,96838.0,96837.0,0.0010742]
[1733005169527,0.78361341,96838.0,96837.0,0.0010742]
[1733005169997,0.68078195,96838.0,96837.0,0.0010742]
[1733005175802,0.67111021,96838.0,96837.0,0.0010742]
[1733005176009,0.68078379,96838.0,96837.0,0.0010742]
[1733005182209,0.57751879,96838.0,96829.0,0.13747196]
[1733005182376,0.10284521,96830.0,96828.0,0.0009962]
[1733005182602,0.11294824,96829.0,96828.0,0.0009962]
[1733005182812,0.103276,96827.0,96826.0,0.18595888]
[1733005182975,0.20612121,96827.0,96826.0,0.18595888]
[1733005183178,0.21579545,96827.0,96826.0,0.18595888]
[1733005183378,0.20612121,96827.0,96826.0,0.18595888]
[1733005183701,0.21639104,96827.0,96826.0,0.18595888]
[1733005183908,0.2067168,96827.0,96826.0,0.18595888]
[1733005184094,0.21639104,96827.0,96826.0,0.18595888]
[1733005184290,0.2137168,96827.0,96826.0,0.18595888]
[1733005184595,0.22339104,96827.0,96826.0,0.18595888]
[1733005184788,0.2137168,96827.0,96826.0,0.18595888]
[1733005185023,0.22339104,96827.0,96826.0,0.18595888]
[1733005185225,0.2137168,96827.0,96826.0,0.18595888]
[1733005185554,0.22639104,96827.0,96826.0,0.18595888]
[1733005185762,0.2167168,96827.0,96826.0,0.18595888]
[1733005185986,0.22639104,96827.0,96826.0,0.18595888]
[1733005186433,0.2167168,96827.0,96826.0,0.18595888]
[1733005186662,0.22639104,96827.0,96826.0,0.18595888]
[1733005186895,0.2167168,96827.0,96826.0,0.18595888]
[1733005187117,0.22639104,96827.0,96826.0,0.18595888]
[1733005187339,0.2167168,96827.0,96826.0,0.18595888]
[1733005187562,0.22639104,96827.0,96826.0,0.18595888]
[1733005187774,0.2167168,96827.0,96826.0,0.18595888]
[1733005187989,0.22639104,96827.0,96826.0,0.18595888]
[1733005188253,0.2167168,96827.0,96826.0,0.18595888]
[1733005188419,0.22639104,96827.0,96826.0,0.18595888]
[1733005188629,0.2167168,96827.0,96826.0,0.18595888]
[1733005188837,0.22639104,96827.0,96826.0,0.18595888]
[1733005189045,0.2167168,96827.0,96826.0,0.18595888]
[1733005189242,0.22639104,96827.0,96826.0,0.18595888]
[1733005189494,0.23730083,96827.0,96826.0,0.18595888]
[1733005189694,0.24697526,96827.0,96826.0,0.18595888]
[1733005190090,0.23730083,96827.0,96826.0,0.18595888]
[1733005190291,0.24697526,96827.0,96826.0,0.18595888]
[1733005190497,0.103278,96826.0,96825.0,0.18595888]
[1733005190695,0.21579764,96826.0,96825.0,0.18595888]
[1733005191078,0.10328,96824.0,96823.0,0.2324486]
[1733005191275,0.20612521,96824.0,96823.0,0.2324486]
[1733005191887,0.103283,96821.0,96815.0,0.27893833]
[1733005192087,0.20612821,96821.0,96815.0,0.27893833]
[1733005193212,0.21012821,96821.0,96815.0,0.27893833]
[1733005194065,0.21212821,96821.0,96815.0,0.27893833]
[1733005196066,0.21212821,96821.0,96820.0,0.05087992]
[1733005197000,0.21212821,96821.0,96820.0,0.047628]
[1733005197417,0.21212821,96821.0,96820.0,0.28010849]
[1733005197843,0.21212821,96821.0,96820.0,0.2831825]
[1733005200394,0.21212821,96821.0,96820.0,0.05070201]
[1733005200611,0.21212821,96821.0,96820.0,0.23667474]
[1733005200873,0.22180315,96821.0,96820.0,0.05070201]
[1733005201092,0.21212821,96821.0,96820.0,0.05070201]
[1733005204175,0.21212821,96821.0,96820.0,0.00480201]
[1733005204389,0.21212821,96821.0,96820.0,0.19074579]
[1733005204879,0.21212821,96821.0,96820.0,0.19074678]
[1733005205303,0.21212821,96821.0,96820.0,0.00480201]
[1733005205817,0.21212821,96821.0,96820.0,0.19074185]
[1733005206213,0.21212821,96821.0,96820.0,0.00480201]
[1733005218804,0.21212821,96821.0,96820.0,0.14423252]
[1733005219225,0.21212821,96821.0,96820.0,0.00480201]
[1733005224174,0.22179869,96821.0,96820.0,0.00480201]
[1733005224776,0.21212821,96821.0,96820.0,0.00480201]
[1733005229940,0.10884521,96821.0,96819.0,0.09922887]
[1733005230175,0.20612921,96820.0,96819.0,0.09922887]
[1733005232145,0.20612921,96820.0,96819.0,0.0008645]
[1733005233050,0.20812921,96820.0,96819.0,0.0008645]
[1733005233474,0.21112921,96820.0,96819.0,0.0008645]
[1733005237843,0.21112921,96820.0,96819.0,0.00390585]
[1733005242429,0.21112921,96820.0,96819.0,0.18981472]
[1733005243645,0.21285781,96820.0,96819.0,0.18981472]
[1733005248346,0.21285781,96820.0,96819.0,0.18990997]
[1733005253742,0.21285781,96820.0,96819.0,0.18992188]
[1733005259280,0.21285781,96820.0,96819.0,0.00390585]
[1733005260328,0.21285781,96820.0,96819.0,0.18992976]
[1733005260539,0.21285781,96820.0,96819.0,0.00390585]
[1733005262731,0.21285781,96820.0,96819.0,0.0008645]
[1733005262958,0.22253321,96820.0,96819.0,0.00384269]
[1733005263184,0.21285781,96820.0,96819.0,0.00384269]
[1733005263385,0.22253321,96820.0,96819.0,0.14336335]
[1733005263643,0.22253321,96820.0,96819.0,0.00384269]
[1733005263644,0.21285781,96820.0,96819.0,0.00384269]
[1733005264038,0.22253292,96820.0,96819.0,0.00384269]
[1733005264316,0.21285781,96820.0,96819.0,0.00384269]
[1733005265013,0.22253292,96820.0,96819.0,0.00384269]
[1733005265225,0.21285781,96820.0,96819.0,0.00384269]
[1733005265649,0.22253292,96820.0,96819.0,0.00384269]
[1733005265896,0.21285781,96820.0,96819.0,0.00384269]
[1733005266753,0.22253292,96820.0,96819.0,0.00384269]
[1733005266986,0.21285781,96820.0,96819.0,0.00384269]
[1733005268302,0.21285781,96820.0,96819.0,0.14335424]
[1733005272899,0.21258411,96820.0,96819.0,0.14335424]
[1733005274026,0.22225944,96820.0,96819.0,0.14335424]
[1733005274265,0.22225873,96820.0,96819.0,0.00384269]
[1733005274490,0.21258411,96820.0,96819.0,0.00384269]
[1733005275147,0.21258411,96820.0,96819.0,0.14334525]
[1733005275365,0.21258411,96820.0,96819.0,0.00384269]
[1733005277409,0.21258411,96820.0,96819.0,0.1433465]
[1733005277642,0.21258411,96820.0,96819.0,0.00384269]
[1733005279030,0.2222582,96820.0,96819.0,0.00384269]
[1733005279257,0.21258411,96820.0,96819.0,0.00384269]
[1733005279721,0.2222582,96820.0,96819.0,0.00384269]
[1733005279999,0.2222582,96820.0,96819.0,0.14334556]
[1733005280474,0.21258411,96820.0,96819.0,0.14334339]
[1733005280712,0.2222582,96820.0,96819.0,0.14334339]
[1733005284777,0.22225819,96820.0,96819.0,0.14334339]
[1733005286322,0.22225819,96820.0,96819.0,0.00384269]
[1733005287188,0.22225819,96820.0,96819.0,0.14334339]
[1733005287546,0.22225819,96820.0,96819.0,0.00384269]
[1733005287968,0.22225819,96820.0,96819.0,0.14334339]
[1733005288170,0.22225852,96820.0,96819.0,0.14334339]
[1733005288903,0.22225852,96820.0,96819.0,0.14334211]
[1733005292017,0.22225852,96820.0,96819.0,0.00384269]
[1733005292896,0.22225852,96820.0,96819.0,0.14334211]
[1733005294275,0.22225852,96820.0,96819.0,0.14334183]
[1733005296592,0.22225852,96820.0,96819.0,0.00384269]
[1733005296808,0.22225852,96820.0,96819.0,0.14334183]
[1733005297990,0.22225852,96820.0,96819.0,0.00384269]
[1733005298599,0.22225861,96820.0,96819.0,0.14334183]
[1733005300012,0.22225861,96820.0,96819.0,0.00384269]
[1733005300439,0.22225861,96820.0,96819.0,0.14334183]
[1733005300849,0.22225861,96820.0,96819.0,0.00384269]
[1733005301081,0.22225861,96820.0,96819.0,0.14334183]
[1733005301294,0.22225861,96820.0,96819.0,0.00384269]
[1733005301729,0.22225861,96820.0,96819.0,0.14334183]
[1733005301935,0.21258411,96820.0,96819.0,0.14334183]
[1733005302146,0.2222585,96820.0,96819.0,0.14334183]
[1733005304327,0.2222585,96820.0,96819.0,0.00384269]
[1733005305185,0.2222585,96820.0,96819.0,0.14335604]